fUSD/lending_fUSD_20250930
["ID","MTS","AMOUNT","RATE_DAILY","PERIOD"]
[388556610,1759240330908,-500.0,0.0002,2]
[388556611,1759240330918,-526.92,0.0002,2]
[388556612,1759240330927,-500.0,0.0002,2]
[388556613,1759240330936,-604.76,0.0002,2]
[388556614,1759240330946,-474.52590314,0.0002,3]
[388556615,1759240330955,-3201.03,0.0002,2]
[388556616,1759240330967,-237.58863196,0.0002,2]
[388556617,1759240330976,-5238.49,0.0002,2]
[388556618,1759240330986,-500.0,0.0002,2]
[388556619,1759240330996,-5111.26,0.0002,2]
[388556620,1759240331006,-500.0,0.0002,2]
[388556621,1759240331015,-2560.34,0.0002,2]
[388556622,1759240331025,-4640.6,0.0002,2]
[388556623,1759240331035,-500.0,0.0002,2]
[388556624,1759240331044,-500.0,0.0002,2]
[388556625,1759240331054,-500.0,0.0002,2]
[388556626,1759240331065,-500.0,0.0002,2]
[388556627,1759240331075,-1545.67,0.0002,2]
[388556628,1759240331085,-4031.72,0.0002,2]
[388556629,1759240331097,-500.0,0.0002,2]
[388556630,1759240331107,-500.0,0.0002,2]
[388556631,1759240331116,-500.0,0.0002,2]
[388556632,1759240331126,-500.0,0.0002,2]
[388556633,1759240331135,-1154.63,0.0002,2]
[388556634,1759240331144,-1918.23,0.0002,2]
[388556635,1759240331154,-883.02,0.0002,2]
[388556636,1759240331163,-2339.41,0.0002,2]
[388556637,1759240331172,-500.0,0.0002,2]
[388556638,1759240331181,-2821.85,0.0002,2]
[388556639,1759240331192,-500.0,0.0002,2]
[388556640,1759240331203,-500.0,0.0002,2]
[388556641,1759240331212,-500.0,0.0002,2]
[388556642,1759240331222,-1184.74,0.0002,2]
[388556643,1759240331232,-500.0,0.0002,2]
[388556644,1759240331241,-1299.41,0.0002,2]
[388556645,1759240331251,-4489.31,0.0002,2]
[388556646,1759240331263,-500.0,0.0002,2]
[388556647,1759240331273,-500.0,0.0002,2]
[388556648,1759240331283,-500.0,0.0002,2]
[388556649,1759240331292,-3466.53,0.0002,2]
[388556650,1759240331302,-934.32,0.0002,2]
[388556651,1759240331312,-500.0,0.0002,2]
[388556652,1759240331322,-881.11,0.0002,2]
[388556653,1759240331332,-505.48432646,0.0002,2]
[388556654,1759240331344,-500.0,0.0002,2]
[388556655,1759240331354,-3298.82,0.0002,2]
[388556656,1759240331363,-4290.21,0.0002,2]
[388556657,1759240331373,-543.06263303,0.0002,2]
[388556658,1759240331382,-500.0,0.0002,2]
[388556659,1759240331392,-500.0,0.0002,2]
[388556660,1759240331402,-500.0,0.0002,2]
[388556661,1759240331413,-500.0,0.0002,2]
[388556662,1759240331423,-3057.69,0.0002,2]
[388556663,1759240331433,-500.0,0.0002,2]
[388556664,1759240331443,-500.0,0.0002,2]
[388556665,1759240331452,-4344.73,0.0002,2]
[388556666,1759240331461,-500.0,0.0002,2]
[388556667,1759240331471,-500.0,0.0002,2]
[388556668,1759240331480,-500.0,0.0002,2]
[388556669,1759240331489,-500.0,0.0002,2]
[388556670,1759240331499,-500.0,0.0002,2]
[388556671,1759240331508,-1700.17,0.0002,2]
[388556672,1759240331517,-3909.15,0.0002,2]
[388556673,1759240331527,-1339.27,0.0002,2]
[388556674,1759240331536,-500.0,0.0002,2]
[388556675,1759240331545,-354.55,0.0002,2]
[388556676,1759240331555,-500.0,0.0002,2]
[388556677,1759240331565,-2034.42,0.0002,2]
[388556678,1759240331575,-500.0,0.0002,2]
[388556679,1759240331584,-500.0,0.0002,2]
[388556680,1759240331595,-500.0,0.0002,2]
[388556681,1759240331606,-736.64,0.0002,2]
[388556682,1759240331615,-500.0,0.0002,2]
[388556683,1759240331625,-500.0,0.0002,2]
[388556684,1759240331635,-500.0,0.0002,2]
[388556685,1759240331644,-732.56,0.0002,2]
[388556686,1759240331654,-3067.08,0.0002,2]
[388556687,1759240331663,-1529.83,0.0002,2]
[388556688,1759240331672,-938.56,0.0002,2]
[388556689,1759240331682,-500.0,0.0002,2]
[388556690,1759240331692,-500.0,0.0002,2]
[388556691,1759240331701,-500.0,0.0002,2]
[388556692,1759240331711,-2151.04,0.0002,2]
[388556693,1759240331721,-500.0,0.0002,2]
[388556694,1759240331731,-500.0,0.0002,2]
[388556695,1759240331740,-1542.41,0.0002,2]
[388556696,1759240331750,-500.0,0.0002,2]
[388556697,1759240331759,-3516.79,0.0002,2]
[388556698,1759240331769,-500.0,0.0002,2]
[388556699,1759240331779,-500.0,0.0002,2]
[388556700,1759240331788,-500.0,0.0002,2]
[388556701,1759240331798,-3168.12,0.0002,2]
[388556702,1759240331808,-583.0,0.0002,2]
[388556703,1759240331818,-930.23,0.0002,2]
[388556704,1759240331828,-500.0,0.0002,2]
[388556705,1759240331837,-3884.01,0.0002,2]
[388556706,1759240331848,-500.0,0.0002,2]
[388556707,1759240331857,-500.0,0.0002,2]
[388556708,1759240331867,-2882.92,0.0002,2]
[388556709,1759240331876,-500.0,0.0002,2]
[388556710,1759240331885,-589.91,0.0002,2]
[388556711,1759240331894,-669.58,0.0002,2]
[388556712,1759240331903,-500.0,0.0002,2]
[388556713,1759240331913,-3512.3,0.0002,2]
[388556714,1759240331925,-500.0,0.0002,2]
[388556715,1759240331934,-3713.1,0.0002,2]
[388556716,1759240331944,-939.33,0.0002,2]
[388556717,1759240331954,-547.83,0.0002,2]
[388556718,1759240331963,-1922.14,0.0002,2]
[388556719,1759240331972,-1367.87,0.0002,2]
[388556720,1759240331982,-204.00261971,0.0002,2]
[388556721,1759240331991,-1836.55,0.0002,2]
[388556722,1759240332000,-500.0,0.0002,2]
[388556723,1759240332010,-500.0,0.0002,2]
[388556724,1759240332019,-645.84,0.0002,2]
[388556725,1759240332028,-906.86,0.0002,2]
[388556726,1759240332037,-500.19,0.0002,2]
[388556727,1759240332047,-500.0,0.0002,2]
[388556728,1759240332056,-500.0,0.0002,2]
[388556729,1759240332065,-500.0,0.0002,2]
[388556730,1759240332074,-872.23,0.0002,2]
[388556731,1759240332084,-703.65,0.0002,2]
[388556732,1759240332094,-635.26,0.0002,2]
[388556733,1759240332103,-610.56,0.0002,2]
[388556734,1759240332113,-5296.49,0.0002,2]
[388556735,1759240332123,-831.12,0.0002,2]
[388556736,1759240332132,-657.04,0.0002,2]
[388556737,1759240332141,-2138.48,0.0002,2]
[388556738,1759240332150,-1814.33,0.0002,2]
[388556739,1759240332159,-500.0,0.0002,2]
[388556740,1759240332169,-934.1,0.0002,2]
[388556741,1759240332178,-500.0,0.0002,2]
[388556742,1759240332187,-4201.08,0.0002,2]
[388556743,1759240332196,-500.0,0.0002,2]
[388556744,1759240332206,-500.0,0.0002,2]
[388556745,1759240332215,-1096.67,0.0002,2]
[388556746,1759240332225,-4322.86,0.0002,2]
[388556747,1759240332234,-925.67,0.0002,2]
[388556748,1759240332244,-1246.74,0.0002,2]
[388556749,1759240332253,-3246.07,0.0002,2]
[388556750,1759240332263,-1879.37,0.0002,2]
[388556751,1759240332272,-500.0,0.0002,2]
[388556752,1759240332282,-500.0,0.0002,2]
[388556753,1759240332291,-2201.18,0.0002,2]
[388556754,1759240332300,-500.0,0.0002,2]
[388556755,1759240332310,-500.0,0.0002,2]
[388556756,1759240332319,-2013.49,0.0002,2]
[388556757,1759240332329,-586.91042877,0.0002,2]
[388556758,1759240332338,-981.64,0.0002,2]
[388556759,1759240332350,-500.0,0.0002,2]
[388556760,1759240332360,-1331.16,0.0002,2]
[388556761,1759240332369,-879.12,0.0002,2]
[388556762,1759240332378,-598.23,0.0002,2]
[388556763,1759240332388,-736.23,0.0002,2]
[388556764,1759240332397,-710.39,0.0002,2]
[388556765,1759240332406,-500.0,0.0002,2]
[388556766,1759240332416,-500.0,0.0002,2]
[388556767,1759240332425,-500.0,0.0002,2]
[388556768,1759240332435,-2843.26,0.0002,2]
[388556769,1759240332444,-2775.75,0.0002,2]
[388556770,1759240332455,-500.0,0.0002,2]
[388556771,1759240332465,-2015.99,0.0002,2]
[388556772,1759240332475,-216.57,0.0002,2]
[388556773,1759240332485,-500.0,0.0002,2]
[388556774,1759240332495,-1744.81,0.0002,2]
[388556775,1759240332504,-500.0,0.0002,2]
[388556776,1759240332514,-4492.44,0.0002,2]
[388556777,1759240332523,-455.42393607,0.0002,2]
[388556778,1759240332533,-500.0,0.0002,2]
[388556779,1759240332542,-1567.07,0.0002,2]
[388556780,1759240332552,-500.0,0.0002,2]
[388556781,1759240332561,-500.0,0.0002,2]
[388556782,1759240332570,-1731.1,0.0002,2]
[388556783,1759240332579,-1622.26,0.0002,2]
[388556784,1759240332589,-786.49,0.0002,2]
[388556785,1759240332602,-4390.54,0.0002,2]
[388556786,1759240332611,-500.0,0.0002,2]
[388556787,1759240332620,-5493.72,0.0002,2]
[388556788,1759240332630,-500.0,0.0002,2]
[388556789,1759240332639,-500.0,0.0002,2]
[388556790,1759240332649,-1863.44,0.0002,2]
[388556791,1759240332659,-1202.76,0.0002,2]
[388556792,1759240332668,-500.0,0.0002,2]
[388556793,1759240332677,-2774.48,0.0002,2]
[388556794,1759240332686,-5219.82,0.0002,2]
[388556795,1759240332695,-1956.66,0.0002,2]
[388556796,1759240332704,-1318.96,0.0002,2]
[388556797,1759240332714,-4927.14,0.0002,2]
[388556798,1759240332723,-1978.62,0.0002,2]
[388556799,1759240332733,-500.0,0.0002,2]
[388556800,1759240332742,-500.0,0.0002,2]
[388556801,1759240332751,-500.0,0.0002,2]
[388556802,1759240332760,-1583.44,0.0002,2]
[388556803,1759240332769,-4340.48,0.0002,2]
[388556804,1759240332779,-1073.21,0.0002,2]
[388556805,1759240332788,-1300.2,0.0002,2]
[388556806,1759240332798,-626.84,0.0002,2]
[388556807,1759240332807,-500.0,0.0002,2]
[388556808,1759240332815,-2633.64,0.0002,2]
[388556809,1759240332824,-594.57329606,0.0002,2]
[388556810,1759240332834,-2610.4,0.0002,2]
[388556811,1759240332846,-989.47,0.0002,2]
[388556812,1759240332855,-1169.32,0.0002,2]
[388556813,1759240332865,-500.0,0.0002,2]
[388556814,1759240332874,-649.78,0.0002,2]
[388556815,1759240332883,-500.0,0.0002,2]
[388556816,1759240332893,-4104.25,0.0002,2]
[388556817,1759240332902,-500.0,0.0002,2]
[388556818,1759240332911,-3027.16,0.0002,2]
[388556819,1759240332922,-500.0,0.0002,2]
[388556820,1759240332931,-3443.7,0.0002,2]
[388556821,1759240332940,-654.94,0.0002,2]
[388556822,1759240332950,-955.76,0.0002,2]
[388556823,1759240332959,-500.0,0.0002,2]
[388556824,1759240332969,-500.0,0.0002,2]
[388556825,1759240332978,-865.96,0.0002,2]
[388556826,1759240332988,-500.0,0.0002,2]
[388556827,1759240332998,-3571.88,0.0002,2]
[388556828,1759240333008,-5002.0,0.0002,2]
[388556829,1759240333018,-500.0,0.0002,2]
[388556830,1759240333028,-4248.48,0.0002,2]
[388556831,1759240333037,-373.61713209,0.0002,2]
[388556832,1759240333047,-613.11,0.0002,2]
[388556833,1759240333056,-1854.6,0.0002,2]
[388556834,1759240333066,-500.0,0.0002,2]
[388556835,1759240333075,-847.88,0.0002,2]
[388556836,1759240333090,-760.35,0.0002,2]
[388556837,1759240333102,-770.21,0.0002,2]
[388556838,1759240333111,-559.36,0.0002,2]
[388556839,1759240333120,-3311.28,0.0002,2]
[388556840,1759240333131,-500.0,0.0002,2]
[388556841,1759240333141,-3545.03,0.0002,2]
[388556842,1759240333150,-672.26,0.0002,2]
[388556843,1759240333160,-618.17,0.0002,2]
[388556844,1759240333169,-3363.37,0.0002,2]
[388556845,1759240333178,-4138.34,0.0002,2]
[388556846,1759240333187,-2219.19,0.0002,2]
[388556847,1759240333196,-11135.57,0.0002,2]
[388556848,1759240333205,-621.31,0.0002,2]
[388556849,1759240333214,-1141.7,0.0002,2]
[388556850,1759240333224,-500.0,0.0002,2]
[388556851,1759240333234,-500.34,0.0002,2]
[388556852,1759240333243,-2474.62,0.0002,2]
[388556853,1759240333252,-500.0,0.0002,2]
[388556854,1759240333264,-1934.01,0.0002,2]
[388556855,1759240333274,-745.96,0.0002,2]
[388556856,1759240333284,-500.0,0.0002,2]
[388556857,1759240333293,-6814.98,0.0002,2]
[388556858,1759240333304,-1325.61,0.0002,2]
[388556859,1759240333313,-500.0,0.0002,2]
[388556860,1759240333322,-500.0,0.0002,2]
[388556861,1759240333332,-508.20951739,0.0002,2]
[388556862,1759240333342,-500.0,0.0002,2]
[388556863,1759240333353,-4836.52,0.0002,2]
[388556864,1759240333364,-10507.95,0.0002,2]
[388556865,1759240333373,-1355.54,0.0002,2]
[388556866,1759240333385,-521.48437459,0.0002,2]
[388556867,1759240333397,-554.24673417,0.0002,2]
[388556868,1759240333406,-500.0,0.0002,2]
[388556869,1759240333416,-500.0,0.0002,2]
[388556870,1759240333426,-1963.48,0.0002,2]
[388556871,1759240333436,-500.0,0.0002,2]
[388556872,1759240333445,-500.0,0.0002,2]
[388556873,1759240333456,-500.0,0.0002,2]
[388556874,1759240333466,-3372.83,0.0002,2]
[388556875,1759240333633,-1073.2,0.0002,2]
[388556876,1759240333645,-557.06,0.0002,2]
[388556877,1759240333655,-500.0,0.0002,2]
[388556878,1759240333665,-500.0,0.0002,2]
[388556879,1759240333674,-5791.96,0.0002,2]
[388556880,1759240333683,-500.0,0.0002,2]
[388556881,1759240333693,-500.0,0.0002,2]
[388556882,1759240333702,-500.0,0.0002,2]
[388556883,1759240333711,-500.0,0.0002,2]
[388556884,1759240333720,-3946.61,0.0002,2]
[388556885,1759240333730,-500.0,0.0002,2]
[388556886,1759240333740,-3259.44,0.0002,2]
[388556887,1759240333749,-937.61,0.0002,2]
[388556888,1759240333760,-3163.57,0.0002,2]
[388556889,1759240333770,-5551.49,0.0002,2]
[388556890,1759240333779,-3075.3,0.0002,2]
[388556891,1759240333789,-500.0,0.0002,2]
[388556892,1759240333798,-704.45,0.0002,2]
[388556893,1759240333807,-500.0,0.0002,2]
[388556894,1759240333816,-509.5,0.0002,2]
[388556895,1759240333825,-8599.07,0.0002,2]
[388556896,1759240333836,-1849.62,0.0002,2]
[388556897,1759240333846,-3998.87,0.0002,2]
[388556898,1759240333856,-500.0,0.0002,2]
[388556899,1759240333865,-500.0,0.0002,2]
[388556900,1759240333875,-500.0,0.0002,2]
[388556901,1759240333884,-4252.51,0.0002,2]
[388556902,1759240333893,-893.75,0.0002,2]
[388556903,1759240333903,-500.0,0.0002,2]
[388556904,1759240333912,-500.0,0.0002,2]
[388556905,1759240333921,-629.67,0.0002,2]
[388556906,1759240333931,-9367.62,0.0002,2]
[388556907,1759240333943,-500.0,0.0002,2]
[388556908,1759240333953,-500.0,0.0002,2]
[388556909,1759240333963,-500.0,0.0002,2]
[388556910,1759240333973,-6111.21,0.0002,2]
[388556911,1759240333983,-805.4,0.0002,2]
[388556912,1759240333993,-500.0,0.0002,2]
[388556913,1759240334003,-270.28612772,0.0002,2]
[388556914,1759240334012,-599.39,0.0002,2]
[388556915,1759240334022,-500.0,0.0002,2]
[388556916,1759240334031,-787.29,0.0002,2]
[388556917,1759240334041,-3187.48,0.0002,2]
[388556918,1759240334050,-500.0,0.0002,2]
[388556919,1759240334059,-966.27,0.0002,2]
[388556920,1759240334068,-5803.24,0.0002,2]
[388556921,1759240334078,-11810.4,0.0002,2]
[388556922,1759240334088,-500.0,0.0002,2]
[388556923,1759240334100,-2300.54,0.0002,2]
[388556924,1759240334109,-500.0,0.0002,2]
[388556925,1759240334119,-3419.59,0.0002,2]
[388556926,1759240334129,-2771.3,0.0002,2]
[388556927,1759240334139,-500.0,0.0002,2]
[388556928,1759240334149,-5786.2,0.0002,2]
[388556929,1759240334160,-3222.59,0.0002,2]
[388556930,1759240334171,-1093.65,0.0002,2]
[388556931,1759240334182,-8791.84,0.0002,2]
[388556932,1759240334192,-4612.6,0.0002,2]
[388556933,1759240334201,-500.0,0.0002,2]
[388556934,1759240334211,-500.0,0.0002,2]
[388556935,1759240334220,-249.28034623,0.0002,2]
[388556936,1759240334230,-500.0,0.0002,2]
[388556937,1759240334240,-3605.76,0.0002,2]
[388556938,1759240334250,-500.0,0.0002,2]
[388556939,1759240334260,-3520.57,0.0002,2]
[388556940,1759240334270,-3604.25,0.0002,2]
[388556941,1759240334280,-522.78365958,0.0002,2]
[388556942,1759240334289,-500.0,0.0002,2]
[388556943,1759240334298,-4033.8,0.0002,2]
[388556944,1759240334308,-965.82,0.0002,2]
[388556945,1759240334318,-500.0,0.0002,2]
[388556946,1759240334328,-20780.06,0.0002,2]
[388556947,1759240334337,-500.0,0.0002,2]
[388556948,1759240334350,-738.87,0.0002,2]
[388556949,1759240334360,-610.04,0.0002,2]
[388556950,1759240334370,-2288.45,0.0002,2]
[388556951,1759240334380,-511.94,0.0002,2]
[388556952,1759240334389,-899.45,0.0002,2]
[388556953,1759240334399,-546.47,0.0002,2]
[388556954,1759240334409,-6082.65,0.0002,2]
[388556955,1759240334419,-500.0,0.0002,2]
[388556956,1759240334428,-2792.99,0.0002,2]
[388556957,1759240334439,-2345.29,0.0002,2]
[388556958,1759240334448,-836.63,0.0002,2]
[388556959,1759240334458,-500.0,0.0002,2]
[388556960,1759240334467,-3532.55,0.0002,2]
[388556961,1759240334477,-500.0,0.0002,2]
[388556962,1759240334487,-2744.05,0.0002,2]
[388556963,1759240334497,-500.0,0.0002,2]
[388556964,1759240334507,-2886.79,0.0002,2]
[388556965,1759240334517,-708.23,0.0002,2]
[388556966,1759240334527,-500.0,0.0002,2]
[388556967,1759240334536,-10430.65,0.0002,2]
[388556968,1759240334545,-500.0,0.0002,2]
[388556969,1759240334555,-854.6,0.0002,2]
[388556970,1759240334564,-500.0,0.0002,2]
[388556971,1759240334574,-1762.85,0.0002,2]
[388556972,1759240334583,-500.0,0.0002,2]
[388556973,1759240334593,-500.0,0.0002,2]
[388556974,1759240334603,-500.0,0.0002,2]
[388556975,1759240334612,-4052.2,0.0002,2]
[388556976,1759240334623,-697.8,0.0002,2]
[388556977,1759240334633,-4990.77,0.0002,2]
[388556978,1759240334643,-1859.04,0.0002,2]
[388556979,1759240334652,-4685.47,0.0002,2]
[388556980,1759240334662,-3466.13,0.0002,2]
[388556981,1759240334672,-500.0,0.0002,2]
[388556982,1759240334682,-2922.79,0.0002,2]
[388556983,1759240334691,-500.0,0.0002,2]
[388556984,1759240334701,-509.44,0.0002,2]
[388556985,1759240334711,-3442.87,0.0002,2]
[388556986,1759240334720,-500.0,0.0002,2]
[388556987,1759240334731,-500.0,0.0002,2]
[388556988,1759240334740,-500.0,0.0002,2]
[388556989,1759240334750,-4827.63,0.0002,2]
[388556990,1759240334760,-526.47,0.0002,2]
[388556991,1759240334770,-929.49,0.0002,2]
[388556992,1759240334779,-500.0,0.0002,2]
[388556993,1759240334789,-576.16,0.0002,2]
[388556994,1759240334798,-1406.64,0.0002,2]
[388556995,1759240334808,-500.0,0.0002,2]
[388556996,1759240334818,-1954.99,0.0002,2]
[388556997,1759240334832,-540.37,0.0002,2]
[388556998,1759240334842,-500.0,0.0002,2]
[388556999,1759240334855,-1043.47,0.0002,2]
[388557000,1759240334866,-3925.81,0.0002,2]
[388557001,1759240334876,-1045.94,0.0002,2]
[388557002,1759240334886,-645.22,0.0002,2]
[388557003,1759240334896,-3484.65,0.0002,2]
[388557004,1759240334905,-500.0,0.0002,2]
[388557005,1759240334915,-2283.42,0.0002,2]
[388557006,1759240334925,-2811.19,0.0002,2]
[388557007,1759240334935,-2895.27,0.0002,2]
[388557008,1759240334944,-2816.6,0.0002,2]
[388557009,1759240334954,-535.69,0.0002,2]
[388557010,1759240334965,-2999.63,0.0002,2]
[388557011,1759240334975,-1338.26,0.0002,2]
[388557012,1759240334985,-500.0,0.0002,2]
[388557013,1759240334994,-3113.64,0.0002,2]
[388557014,1759240335004,-19762.18,0.0002,2]
[388557015,1759240335014,-1174.76,0.0002,2]
[388557016,1759240335024,-4837.09,0.0002,2]
[388557017,1759240335034,-947.63,0.0002,2]
[388557018,1759240335044,-3304.23,0.0002,2]
[388557019,1759240335053,-886.09,0.0002,2]
[388557020,1759240335065,-500.0,0.0002,2]
[388557021,1759240335075,-1427.41,0.0002,2]
[388557022,1759240335084,-2936.04,0.0002,2]
[388557023,1759240335096,-500.0,0.0002,2]
[388557024,1759240335107,-1072.81,0.0002,2]
[388557025,1759240335117,-5730.05,0.0002,2]
[388557026,1759240335127,-9933.01,0.0002,2]
[388557027,1759240335137,-8309.91,0.0002,2]
[388557028,1759240335146,-1695.32,0.0002,2]
[388557029,1759240335156,-500.0,0.0002,2]
[388557030,1759240335167,-1068.35,0.0002,2]
[388557031,1759240335181,-1099.77,0.0002,2]
[388557032,1759240335190,-1860.95,0.0002,2]
[388557033,1759240335201,-500.0,0.0002,2]
[388557034,1759240335211,-3886.98,0.0002,2]
[388557035,1759240335220,-2834.78,0.0002,2]
[388557036,1759240335230,-719.55,0.0002,2]
[388557037,1759240335240,-5464.08,0.0002,2]
[388557038,1759240335250,-4218.11,0.0002,2]
[388557039,1759240335265,-500.0,0.0002,2]
[388557040,1759240335276,-1340.22,0.0002,2]
[388557041,1759240335286,-7280.81,0.0002,2]
[388557042,1759240335295,-268.72609891,0.0002,2]
[388557043,1759240335306,-3179.64,0.0002,2]
[388557044,1759240335316,-4400.59,0.0002,2]
[388557045,1759240335326,-500.0,0.0002,2]
[388557046,1759240335336,-3118.0,0.0002,2]
[388557047,1759240335349,-1382.23,0.0002,2]
[388557048,1759240335359,-1085.95,0.0002,2]
[388557049,1759240335369,-5606.8,0.0002,2]
[388557050,1759240335380,-500.0,0.0002,2]
[388557051,1759240335389,-2191.69,0.0002,2]
[388557052,1759240335399,-150.0,0.0002,2]
[388557053,1759240335409,-500.0,0.0002,2]
[388557054,1759240335419,-1121.59,0.0002,2]
[388557055,1759240335428,-500.0,0.0002,2]
[388557056,1759240335438,-1821.92,0.0002,2]
[388557057,1759240335448,-423.23389929,0.0002,2]
[388557058,1759240335459,-500.0,0.0002,2]
[388557059,1759240335468,-500.0,0.0002,2]
[388557060,1759240335478,-4022.76,0.0002,2]
[388557061,1759240335488,-500.0,0.0002,2]
[388557062,1759240335499,-500.0,0.0002,2]
[388557063,1759240335509,-334.56289888,0.0002,2]
[388557064,1759240335518,-3228.92,0.0002,2]
[388557065,1759240335528,-1155.95,0.0002,2]
[388557066,1759240335538,-478.1,0.0002,2]
[388557067,1759240335549,-500.0,0.0002,2]
[388557068,1759240335558,-500.0,0.0002,2]
[388557069,1759240335568,-500.0,0.0002,2]
[388557070,1759240335578,-715.09,0.0002,2]
[388557071,1759240335588,-2361.75,0.0002,2]
[388557072,1759240335600,-1154.61,0.0002,2]
[388557073,1759240335610,-500.0,0.0002,2]
[388557074,1759240335620,-3696.96,0.0002,2]
[388557075,1759240335630,-22451.0,0.0002,2]
[388557076,1759240335640,-500.0,0.0002,2]
[388557077,1759240335651,-2532.13,0.0002,2]
[388557078,1759240335660,-1235.06,0.0002,2]
[388557079,1759240335671,-550.71,0.0002,2]
[388557080,1759240335681,-500.0,0.0002,2]
[388557081,1759240335690,-500.0,0.0002,2]
[388557082,1759240335701,-1249.63,0.0002,2]
[388557083,1759240335711,-4834.6,0.0002,2]
[388557084,1759240335721,-500.0,0.0002,2]
[388557085,1759240335732,-2260.51,0.0002,2]
[388557086,1759240335742,-500.0,0.0002,2]
[388557087,1759240335752,-500.0,0.0002,2]
[388557088,1759240335761,-301.7,0.0002,2]
[388557089,1759240335771,-6286.35,0.0002,2]
[388557090,1759240335781,-6442.41,0.0002,2]
[388557091,1759240335791,-2171.4,0.0002,2]
[388557092,1759240335801,-8170.98,0.0002,2]
[388557093,1759240335812,-2781.0,0.0002,2]
[388557094,1759240335822,-500.0,0.0002,2]
[388557095,1759240335833,-771.77,0.0002,2]
[388557096,1759240335842,-663.14,0.0002,2]
[388557097,1759240335854,-500.0,0.0002,2]
[388557098,1759240336231,-2939.81,0.0002,2]
[388557099,1759240336246,-500.0,0.0002,2]
[388557100,1759240336256,-3571.8,0.0002,2]
[388557101,1759240336266,-3082.09,0.0002,2]
[388557102,1759240336275,-4639.88,0.0002,2]
[388557103,1759240336284,-4726.46,0.0002,2]
[388557104,1759240336295,-1404.94,0.0002,2]
[388557105,1759240336304,-934.2,0.0002,2]
[388557106,1759240336314,-500.0,0.0002,2]
[388557107,1759240336325,-4502.44,0.0002,2]
[388557108,1759240336335,-500.0,0.0002,2]
[388557109,1759240336346,-3406.59,0.0002,2]